[Event "Titled Tuesday Blitz January 31 Early 2023"]
[White "Salimova, Nurgyul"]
[Black "Svane, Rasmus"]
[WhiteFideId "2915138"]
[BlackFideId "4657101"]
[WhiteElo "2391"]
[BlackElo "2623"]
[Result "1/2-1/2"]
[Round "08"]
[TimeControl "180+2"]
[Date "2023.01.31"]
[WhiteClock "0:00:16"]
[BlackClock "0:00:13"]

1. d4 {[%clk 0:03:00]}  Nf6 {[%clk 0:02:59]} 2. Nf3 {[%clk 0:03:00]}  d5 {[%clk 0:02:59]} 3. c4 {[%clk 0:03:00]}  e6 {[%clk 0:02:59]} 4. g3 {[%clk 0:03:00]}  h6 {[%clk 0:02:54]} 5. Bg2 {[%clk 0:02:56]}  Bd6 {[%clk 0:02:55]} 6. O-O {[%clk 0:02:55]}  O-O {[%clk 0:02:55]} 7. Nbd2 {[%clk 0:02:50]}  b6 {[%clk 0:02:54]} 8. Qc2 {[%clk 0:02:48]}  Bb7 {[%clk 0:02:54]} 9. b3 {[%clk 0:02:46]}  Nbd7 {[%clk 0:02:54]} 10. Bb2 {[%clk 0:02:45]}  Rc8 {[%clk 0:02:49]} 11. Rad1 {[%clk 0:02:40]}  Qe7 {[%clk 0:02:46]} 12. Qb1 {[%clk 0:02:28]}  c5 {[%clk 0:02:45]} 13. dxc5 {[%clk 0:02:26]}  bxc5 {[%clk 0:02:45]} 14. cxd5 {[%clk 0:02:22]}  exd5 {[%clk 0:02:45]} 15. Nh4 {[%clk 0:02:22]}  Qe6 {[%clk 0:02:29]} 16. Nf5 {[%clk 0:02:08]}  Be5 {[%clk 0:02:17]} 17. Ba3 {[%clk 0:01:55]}  g6 {[%clk 0:02:10]} 18. Ne3 {[%clk 0:01:39]}  Ba6 {[%clk 0:01:57]} 19. Bf3 {[%clk 0:01:25]}  Rfd8 {[%clk 0:01:54]} 20. Rfe1 {[%clk 0:00:33]}  Bd4 {[%clk 0:01:32]} 21. Nc2 {[%clk 0:00:31]}  Bc3 {[%clk 0:01:32]} 22. Bb2 {[%clk 0:00:30]}  d4 {[%clk 0:01:32]} 23. Bxc3 {[%clk 0:00:28]}  dxc3 {[%clk 0:01:33]} 24. Nf1 {[%clk 0:00:29]}  Ne5 {[%clk 0:01:30]} 25. Qa1 {[%clk 0:00:27]}  Rxd1 {[%clk 0:01:14]} 26. Qxd1 {[%clk 0:00:25]}  Qb6 {[%clk 0:00:40]} 27. Qa1 {[%clk 0:00:20]}  Qa5 {[%clk 0:00:40]} 28. Bg2 {[%clk 0:00:15]}  Rd8 {[%clk 0:00:31]} 29. a3 {[%clk 0:00:10]}  Bb5 {[%clk 0:00:26]} 30. f4 {[%clk 0:00:11]}  Nc6 {[%clk 0:00:24]} 31. a4 {[%clk 0:00:11]}  Nd4 {[%clk 0:00:13]} 32. Nxd4 {[%clk 0:00:11]}  cxd4 {[%clk 0:00:14]} 33. axb5 {[%clk 0:00:10]}  Qxb5 {[%clk 0:00:15]} 34. Qb1 {[%clk 0:00:09]}  a5 {[%clk 0:00:14]} 35. Qc2 {[%clk 0:00:07]}  Rb8 {[%clk 0:00:14]} 36. Rd1 {[%clk 0:00:02]}  Qxb3 {[%clk 0:00:14]} 37. Qxb3 {[%clk 0:00:02]}  Rxb3 {[%clk 0:00:15]} 38. Rxd4 {[%clk 0:00:02]}  c2 {[%clk 0:00:15]} 39. Rc4 {[%clk 0:00:03]}  Rb2 {[%clk 0:00:15]} 40. Kf2 {[%clk 0:00:02]}  a4 {[%clk 0:00:16]} 41. Ne3 {[%clk 0:00:02]}  Ng4+ {[%clk 0:00:09]} 42. Nxg4 {[%clk 0:00:01]}  a3 {[%clk 0:00:10]} 43. Ne3 {[%clk 0:00:01]}  a2 {[%clk 0:00:10]} 44. Rc8+ {[%clk 0:00:01]}  Kg7 {[%clk 0:00:10]} 45. Nxc2 {[%clk 0:00:01]}  Rxc2 {[%clk 0:00:10]} 46. Rxc2 {[%clk 0:00:02]}  a1=Q {[%clk 0:00:11]} 47. Rd2 {[%clk 0:00:02]}  Qc3 {[%clk 0:00:11]} 48. Rd3 {[%clk 0:00:03]}  Qc5+ {[%clk 0:00:12]} 49. Kf1 {[%clk 0:00:03]}  Qc1+ {[%clk 0:00:12]} 50. Kf2 {[%clk 0:00:03]}  Qc5+ {[%clk 0:00:13]} 51. Kf1 {[%clk 0:00:04]}  Qb6 {[%clk 0:00:13]} 52. Bf3 {[%clk 0:00:04]}  Qa7 {[%clk 0:00:12]} 53. Kg2 {[%clk 0:00:04]}  Qc5 {[%clk 0:00:13]} 54. Kf1 {[%clk 0:00:05]}  Qe7 {[%clk 0:00:13]} 55. Kg2 {[%clk 0:00:06]}  g5 {[%clk 0:00:14]} 56. fxg5 {[%clk 0:00:04]}  hxg5 {[%clk 0:00:14]} 57. Rd5 {[%clk 0:00:04]}  Kg6 {[%clk 0:00:14]} 58. g4 {[%clk 0:00:04]}  Qe3 {[%clk 0:00:11]} 59. h3 {[%clk 0:00:04]}  f6 {[%clk 0:00:11]} 60. Rd3 {[%clk 0:00:04]}  Qe5 {[%clk 0:00:11]} 61. Rd5 {[%clk 0:00:04]}  Qe6 {[%clk 0:00:11]} 62. Rd3 {[%clk 0:00:04]}  Kh6 {[%clk 0:00:11]} 63. Rd5 {[%clk 0:00:05]}  Qe3 {[%clk 0:00:11]} 64. Rd3 {[%clk 0:00:05]}  Qe5 {[%clk 0:00:11]} 65. Rd5 {[%clk 0:00:06]}  Qe6 {[%clk 0:00:12]} 66. Rd3 {[%clk 0:00:07]}  Kg7 {[%clk 0:00:13]} 67. Rd5 {[%clk 0:00:07]}  Kf8 {[%clk 0:00:13]} 68. Rd3 {[%clk 0:00:07]}  Ke7 {[%clk 0:00:13]} 69. Kf2 {[%clk 0:00:06]}  Qb6+ {[%clk 0:00:14]} 70. Kg2 {[%clk 0:00:06]}  Ke6 {[%clk 0:00:14]} 71. Rd5 {[%clk 0:00:05]}  Qa7 {[%clk 0:00:13]} 72. Rf5 {[%clk 0:00:06]}  Qe3 {[%clk 0:00:12]} 73. Rd5 {[%clk 0:00:05]}  Qc1 {[%clk 0:00:13]} 74. Rf5 {[%clk 0:00:05]}  Qd2 {[%clk 0:00:13]} 75. Rd5 {[%clk 0:00:05]}  Qe1 {[%clk 0:00:14]} 76. Rf5 {[%clk 0:00:05]}  Qc3 {[%clk 0:00:14]} 77. Rd5 {[%clk 0:00:06]}  Qc1 {[%clk 0:00:13]} 78. Rf5 {[%clk 0:00:06]}  Qe1 {[%clk 0:00:14]} 79. Rd5 {[%clk 0:00:06]}  Kf7 {[%clk 0:00:14]} 80. Rf5 {[%clk 0:00:07]}  Kg6 {[%clk 0:00:15]} 81. Rd5 {[%clk 0:00:07]}  Qc1 {[%clk 0:00:15]} 82. Rf5 {[%clk 0:00:07]}  Qe3 {[%clk 0:00:15]} 83. Rd5 {[%clk 0:00:08]}  Kf7 {[%clk 0:00:16]} 84. Rf5 {[%clk 0:00:08]}  Ke6 {[%clk 0:00:17]} 85. Rd5 {[%clk 0:00:09]}  Qc3 {[%clk 0:00:17]} 86. Rf5 {[%clk 0:00:09]}  Qd2 {[%clk 0:00:17]} 87. Rd5 {[%clk 0:00:10]}  Qc2 {[%clk 0:00:16]} 88. Rf5 {[%clk 0:00:10]}  Qb2 {[%clk 0:00:16]} 89. Rd5 {[%clk 0:00:10]}  Qa1 {[%clk 0:00:16]} 90. Rf5 {[%clk 0:00:10]}  Kd6 {[%clk 0:00:16]} 91. Rd5+ {[%clk 0:00:11]}  Kc7 {[%clk 0:00:17]} 92. Rf5 {[%clk 0:00:12]}  Kb6 {[%clk 0:00:18]} 93. Rd5 {[%clk 0:00:12]}  Kc7 {[%clk 0:00:16]} 94. Rf5 {[%clk 0:00:13]}  Kd6 {[%clk 0:00:14]} 95. Rd5+ {[%clk 0:00:13]}  Ke7 {[%clk 0:00:14]} 96. Rf5 {[%clk 0:00:14]}  Kf7 {[%clk 0:00:15]} 97. Rd5 {[%clk 0:00:14]}  Kg7 {[%clk 0:00:15]} 98. Rf5 {[%clk 0:00:15]}  Qe1 {[%clk 0:00:15]} 99. Rd5 {[%clk 0:00:15]}  Qh4 {[%clk 0:00:16]} 100. Rf5 {[%clk 0:00:14]}  Qh8 {[%clk 0:00:16]} 101. Rd5 {[%clk 0:00:15]}  Qe8 {[%clk 0:00:17]} 102. Rf5 {[%clk 0:00:15]}  Qe3 {[%clk 0:00:15]} 103. Rd5 {[%clk 0:00:15]}  Kf7 {[%clk 0:00:14]} 104. Rf5 {[%clk 0:00:16]}  Ke7 {[%clk 0:00:15]} 105. Rd5 {[%clk 0:00:16]}  Ke6 {[%clk 0:00:16]} 106. Rf5 {[%clk 0:00:16]}  Qd2 {[%clk 0:00:13]} 1/2-1/2


[Site "https://www.chess.com"]

[Event "Titled Tuesday Blitz January 31 Early 2023"]
[White "Nouri, Alekhine"]
[Black "Drygalov, Sergey"]
[WhiteFideId "5216184"]
[BlackFideId "24171743"]
[WhiteElo "2257"]
[BlackElo "2547"]
[Result "0-1"]
[Round "08"]
[TimeControl "180+2"]
[Date "2023.01.31"]
[WhiteClock "0:00:27"]
[BlackClock "0:01:40"]

1. e4 {[%clk 0:03:00]}  c5 {[%clk 0:03:00]} 2. Nc3 {[%clk 0:03:00]}  d6 {[%clk 0:03:00]} 3. Bb5+ {[%clk 0:02:57]}  Bd7 {[%clk 0:02:56]} 4. Bxd7+ {[%clk 0:02:56]}  Nxd7 {[%clk 0:02:52]} 5. d4 {[%clk 0:02:56]}  cxd4 {[%clk 0:02:52]} 6. Qxd4 {[%clk 0:02:57]}  Ngf6 {[%clk 0:02:51]} 7. Bg5 {[%clk 0:02:56]}  e5 {[%clk 0:02:51]} 8. Qd2 {[%clk 0:02:54]}  a6 {[%clk 0:02:46]} 9. Nge2 {[%clk 0:02:44]}  h6 {[%clk 0:02:37]} 10. Bxf6 {[%clk 0:02:41]}  Nxf6 {[%clk 0:02:38]} 11. O-O-O {[%clk 0:02:38]}  Rc8 {[%clk 0:02:37]} 12. f4 {[%clk 0:02:38]}  Qc7 {[%clk 0:02:36]} 13. Rhf1 {[%clk 0:02:29]}  Be7 {[%clk 0:02:30]} 14. Ng3 {[%clk 0:02:28]}  g6 {[%clk 0:02:29]} 15. f5 {[%clk 0:02:16]}  b5 {[%clk 0:02:25]} 16. Kb1 {[%clk 0:02:10]}  Qc4 {[%clk 0:02:16]} 17. fxg6 {[%clk 0:02:02]}  fxg6 {[%clk 0:02:16]} 18. Rxf6 {[%clk 0:02:02]}  Bxf6 {[%clk 0:02:16]} 19. Qxd6 {[%clk 0:01:56]}  Qc6 {[%clk 0:02:12]} 20. Qd2 {[%clk 0:01:09]}  Bg5 {[%clk 0:02:11]} 21. Qe2 {[%clk 0:00:57]}  O-O {[%clk 0:02:11]} 22. Nd5 {[%clk 0:00:56]}  Qc4 {[%clk 0:02:04]} 23. Qxc4 {[%clk 0:00:46]}  bxc4 {[%clk 0:02:01]} 24. b3 {[%clk 0:00:27]}  cxb3 {[%clk 0:01:56]} 25. axb3 {[%clk 0:00:28]}  Rf2 {[%clk 0:01:55]} 26. c4 {[%clk 0:00:28]}  Rxg2 {[%clk 0:01:48]} 27. Rd3 {[%clk 0:00:28]}  h5 {[%clk 0:01:43]} 28. Nb6 {[%clk 0:00:27]}  Rf8 {[%clk 0:01:42]} 29. Nd7 {[%clk 0:00:27]}  Rff2 {[%clk 0:01:40]} 0-1


[Site "https://www.chess.com"]

[Event "Titled Tuesday Blitz January 31 Early 2023"]
[White "Kravtsiv, Martyn"]
[Black "Hambleton, Aman"]
[WhiteFideId "14113147"]
[BlackFideId "2606577"]
[WhiteElo "2598"]
[BlackElo "2420"]
[Result "0-1"]
[Round "08"]
[TimeControl "180+2"]
[Date "2023.01.31"]
[WhiteClock "0:00:22"]
[BlackClock "0:00:03"]

1. e4 {[%clk 0:03:00]}  c5 {[%clk 0:02:57]} 2. Nf3 {[%clk 0:03:00]}  e6 {[%clk 0:02:56]} 3. d4 {[%clk 0:03:00]}  cxd4 {[%clk 0:02:56]} 4. Nxd4 {[%clk 0:03:01]}  Nc6 {[%clk 0:02:55]} 5. Nc3 {[%clk 0:03:00]}  Qc7 {[%clk 0:02:55]} 6. Be2 {[%clk 0:02:57]}  a6 {[%clk 0:02:51]} 7. O-O {[%clk 0:02:55]}  b5 {[%clk 0:02:47]} 8. Nxc6 {[%clk 0:02:53]}  Qxc6 {[%clk 0:02:47]} 9. Bf3 {[%clk 0:02:51]}  Bb7 {[%clk 0:02:45]} 10. a4 {[%clk 0:02:47]}  b4 {[%clk 0:02:25]} 11. Ne2 {[%clk 0:02:44]}  Bc5 {[%clk 0:01:45]} 12. c3 {[%clk 0:02:41]}  bxc3 {[%clk 0:01:23]} 13. Nxc3 {[%clk 0:02:42]}  Ne7 {[%clk 0:01:24]} 14. h4 {[%clk 0:02:19]}  Ng6 {[%clk 0:01:10]} 15. h5 {[%clk 0:02:18]}  Ne5 {[%clk 0:01:08]} 16. Bf4 {[%clk 0:02:17]}  Nxf3+ {[%clk 0:00:33]} 17. Qxf3 {[%clk 0:02:16]}  Bd4 {[%clk 0:00:33]} 18. Rfe1 {[%clk 0:02:05]}  O-O {[%clk 0:00:14]} 19. Rad1 {[%clk 0:02:03]}  Bxc3 {[%clk 0:00:11]} 20. bxc3 {[%clk 0:02:03]}  f5 {[%clk 0:00:10]} 21. Qg3 {[%clk 0:01:39]}  fxe4 {[%clk 0:00:08]} 22. Be5 {[%clk 0:01:32]}  Rf7 {[%clk 0:00:08]} 23. h6 {[%clk 0:01:32]}  g6 {[%clk 0:00:08]} 24. Rd6 {[%clk 0:01:26]}  Qxa4 {[%clk 0:00:06]} 25. Rb1 {[%clk 0:01:25]}  Bc6 {[%clk 0:00:04]} 26. Bd4 {[%clk 0:01:24]}  Raf8 {[%clk 0:00:03]} 27. Qe5 {[%clk 0:01:23]}  Rf6 {[%clk 0:00:03]} 28. g4 {[%clk 0:00:50]}  Qc2 {[%clk 0:00:02]} 29. Rb8 {[%clk 0:00:45]}  Qd1+ {[%clk 0:00:02]} 30. Kh2 {[%clk 0:00:45]}  Qxg4 {[%clk 0:00:01]} 31. Rxf8+ {[%clk 0:00:43]}  Kxf8 {[%clk 0:00:01]} 32. Qxf6+ {[%clk 0:00:43]}  Ke8 {[%clk 0:00:02]} 33. Bc5 {[%clk 0:00:28]}  Qh5+ {[%clk 0:00:02]} 34. Kg3 {[%clk 0:00:24]}  Qxc5 {[%clk 0:00:03]} 35. Qxe6+ {[%clk 0:00:22]}  dxe6 {[%clk 0:00:03]} 0-1


[Site "https://www.chess.com"]

[Event "Titled Tuesday Blitz January 31 Early 2023"]
[White "Samunenkov, Ihor"]
[Black "Ioannidis, Evgenios"]
[WhiteFideId "14187086"]
[BlackFideId "4229274"]
[WhiteElo "2501"]
[BlackElo "2467"]
[Result "1-0"]
[Round "08"]
[TimeControl "180+2"]
[Date "2023.01.31"]
[WhiteClock "0:02:27"]
[BlackClock "0:00:55"]

1. e4 {[%clk 0:02:58]}  e5 {[%clk 0:03:00]} 2. Nf3 {[%clk 0:02:58]}  Nc6 {[%clk 0:03:00]} 3. Bb5 {[%clk 0:02:58]}  a6 {[%clk 0:03:00]} 4. Ba4 {[%clk 0:02:59]}  Nf6 {[%clk 0:03:01]} 5. Nc3 {[%clk 0:03:00]}  b5 {[%clk 0:03:00]} 6. Bb3 {[%clk 0:03:00]}  Bc5 {[%clk 0:03:01]} 7. O-O {[%clk 0:03:00]}  d6 {[%clk 0:03:01]} 8. Nd5 {[%clk 0:03:01]}  O-O {[%clk 0:02:56]} 9. d4 {[%clk 0:02:59]}  Nxd4 {[%clk 0:02:50]} 10. Nxd4 {[%clk 0:02:59]}  Bxd4 {[%clk 0:02:50]} 11. c3 {[%clk 0:02:58]}  Ba7 {[%clk 0:02:45]} 12. Bg5 {[%clk 0:02:57]}  c6 {[%clk 0:01:01]} 13. Nxf6+ {[%clk 0:02:43]}  gxf6 {[%clk 0:01:01]} 14. Bh6 {[%clk 0:02:42]}  Re8 {[%clk 0:00:56]} 15. Qf3 {[%clk 0:02:29]}  Kh8 {[%clk 0:00:56]} 16. Bxf7 {[%clk 0:02:30]}  Rf8 {[%clk 0:00:55]} 17. Bxf8 {[%clk 0:02:27]} 1-0


[Site "https://www.chess.com"]

[Event "Titled Tuesday Blitz January 31 Early 2023"]
[White "Ozen, Bahadir"]
[Black "Csonka, Balazs"]
[WhiteFideId "6337058"]
[BlackFideId "742910"]
[WhiteElo "2369"]
[BlackElo "2496"]
[Result "1/2-1/2"]
[Round "08"]
[TimeControl "180+2"]
[Date "2023.01.31"]
[WhiteClock "0:00:11"]
[BlackClock "0:00:04"]

1. g3 {[%clk 0:03:00]}  d5 {[%clk 0:02:54]} 2. Nf3 {[%clk 0:03:00]}  c6 {[%clk 0:02:51]} 3. Bg2 {[%clk 0:03:01]}  Bf5 {[%clk 0:02:52]} 4. d3 {[%clk 0:03:00]}  e6 {[%clk 0:02:52]} 5. Nh4 {[%clk 0:03:00]}  Bg4 {[%clk 0:02:50]} 6. h3 {[%clk 0:02:57]}  Bh5 {[%clk 0:02:50]} 7. O-O {[%clk 0:02:53]}  Nd7 {[%clk 0:02:45]} 8. Qe1 {[%clk 0:02:51]}  Be7 {[%clk 0:02:24]} 9. f4 {[%clk 0:02:51]}  Bxh4 {[%clk 0:02:18]} 10. gxh4 {[%clk 0:02:52]}  Ne7 {[%clk 0:02:18]} 11. e4 {[%clk 0:02:50]}  O-O {[%clk 0:02:15]} 12. Qg3 {[%clk 0:02:50]}  Ng6 {[%clk 0:01:50]} 13. Qg5 {[%clk 0:02:43]}  Qxg5 {[%clk 0:01:21]} 14. hxg5 {[%clk 0:02:44]}  dxe4 {[%clk 0:01:11]} 15. dxe4 {[%clk 0:02:42]}  e5 {[%clk 0:01:00]} 16. f5 {[%clk 0:02:24]}  Nf4 {[%clk 0:01:01]} 17. Bxf4 {[%clk 0:02:23]}  exf4 {[%clk 0:01:01]} 18. Nc3 {[%clk 0:02:21]}  Ne5 {[%clk 0:01:00]} 19. Rxf4 {[%clk 0:02:19]}  Rfd8 {[%clk 0:00:57]} 20. Rf2 {[%clk 0:02:18]}  Rd4 {[%clk 0:00:49]} 21. a4 {[%clk 0:01:48]}  a5 {[%clk 0:00:47]} 22. b3 {[%clk 0:01:48]}  Rad8 {[%clk 0:00:44]} 23. Raf1 {[%clk 0:01:45]}  f6 {[%clk 0:00:38]} 24. gxf6 {[%clk 0:01:43]}  gxf6 {[%clk 0:00:39]} 25. Kh2 {[%clk 0:01:44]}  Kf8 {[%clk 0:00:36]} 26. Kg3 {[%clk 0:01:44]}  Ke7 {[%clk 0:00:32]} 27. Bh1 {[%clk 0:01:42]}  Rg8+ {[%clk 0:00:31]} 28. Kf4 {[%clk 0:01:38]}  Nf7 {[%clk 0:00:22]} 29. Ke3 {[%clk 0:01:32]}  Rgd8 {[%clk 0:00:20]} 30. Rg1 {[%clk 0:01:29]}  Kf8 {[%clk 0:00:18]} 31. Rfg2 {[%clk 0:01:06]}  Ne5 {[%clk 0:00:14]} 32. Rg8+ {[%clk 0:01:05]}  Ke7 {[%clk 0:00:15]} 33. R1g7+ {[%clk 0:01:03]}  Bf7 {[%clk 0:00:15]} 34. Rxd8 {[%clk 0:01:03]}  Rxd8 {[%clk 0:00:15]} 35. Bf3 {[%clk 0:00:57]}  h6 {[%clk 0:00:11]} 36. Be2 {[%clk 0:00:55]}  Kf8 {[%clk 0:00:05]} 37. Rg1 {[%clk 0:00:55]}  Ke7 {[%clk 0:00:05]} 38. Na2 {[%clk 0:00:43]}  Rb8 {[%clk 0:00:03]} 39. Nc1 {[%clk 0:00:20]}  Rg8 {[%clk 0:00:04]} 40. Rxg8 {[%clk 0:00:19]}  Bxg8 {[%clk 0:00:05]} 41. Nd3 {[%clk 0:00:20]}  Nxd3 {[%clk 0:00:05]} 42. Bxd3 {[%clk 0:00:20]}  Kd6 {[%clk 0:00:05]} 43. Kf4 {[%clk 0:00:17]}  Bf7 {[%clk 0:00:04]} 44. Be2 {[%clk 0:00:17]}  Be8 {[%clk 0:00:03]} 45. h4 {[%clk 0:00:15]}  Bf7 {[%clk 0:00:03]} 46. Bf3 {[%clk 0:00:14]}  Be8 {[%clk 0:00:03]} 47. Be2 {[%clk 0:00:10]}  Bf7 {[%clk 0:00:03]} 48. Bf3 {[%clk 0:00:11]}  Be8 {[%clk 0:00:04]} 49. Be2 {[%clk 0:00:11]} 1/2-1/2


[Site "https://www.chess.com"]

[Event "Titled Tuesday Blitz January 31 Early 2023"]
[White "Jakubowski, Krzysztof"]
[Black "Galchenko, Matvey"]
[WhiteFideId "1112848"]
[BlackFideId "24175480"]
[WhiteElo "2486"]
[BlackElo "2438"]
[Result "1-0"]
[Round "08"]
[TimeControl "180+2"]
[Date "2023.01.31"]
[WhiteClock "0:00:42"]
[BlackClock "0:00:01"]

1. e4 {[%clk 0:02:59]}  e6 {[%clk 0:02:58]} 2. d4 {[%clk 0:02:59]}  d5 {[%clk 0:02:59]} 3. Nc3 {[%clk 0:02:59]}  Bb4 {[%clk 0:02:59]} 4. e5 {[%clk 0:02:59]}  Ne7 {[%clk 0:02:59]} 5. a3 {[%clk 0:02:58]}  Bxc3+ {[%clk 0:02:59]} 6. bxc3 {[%clk 0:02:59]}  c5 {[%clk 0:03:00]} 7. Nf3 {[%clk 0:02:57]}  h6 {[%clk 0:03:00]} 8. Be2 {[%clk 0:02:51]}  b6 {[%clk 0:03:00]} 9. O-O {[%clk 0:02:47]}  Ba6 {[%clk 0:02:57]} 10. a4 {[%clk 0:02:47]}  Bxe2 {[%clk 0:02:56]} 11. Qxe2 {[%clk 0:02:48]}  Qc7 {[%clk 0:02:57]} 12. a5 {[%clk 0:02:48]}  Nd7 {[%clk 0:02:44]} 13. axb6 {[%clk 0:02:47]}  Qxb6 {[%clk 0:02:45]} 14. Ba3 {[%clk 0:02:44]}  O-O {[%clk 0:02:44]} 15. Rfb1 {[%clk 0:02:39]}  Qc7 {[%clk 0:02:44]} 16. dxc5 {[%clk 0:02:38]}  Nxc5 {[%clk 0:02:29]} 17. Nd4 {[%clk 0:02:35]}  a6 {[%clk 0:02:29]} 18. Bb4 {[%clk 0:02:30]}  Rfc8 {[%clk 0:02:27]} 19. Ra5 {[%clk 0:02:22]}  Ne4 {[%clk 0:02:22]} 20. Rb3 {[%clk 0:02:11]}  Nc6 {[%clk 0:02:05]} 21. Nxc6 {[%clk 0:02:09]}  Qxc6 {[%clk 0:02:06]} 22. Rba3 {[%clk 0:01:49]}  Qb7 {[%clk 0:01:22]} 23. g3 {[%clk 0:01:36]}  Rc4 {[%clk 0:00:52]} 24. f3 {[%clk 0:01:32]}  Ng5 {[%clk 0:00:46]} 25. h4 {[%clk 0:01:24]}  Nh7 {[%clk 0:00:32]} 26. Rb3 {[%clk 0:01:23]}  Qb6+ {[%clk 0:00:27]} 27. Kg2 {[%clk 0:01:22]}  Nf8 {[%clk 0:00:26]} 28. Ra1 {[%clk 0:01:17]}  Nd7 {[%clk 0:00:26]} 29. Bd6 {[%clk 0:01:16]}  Qc6 {[%clk 0:00:26]} 30. Qe3 {[%clk 0:00:59]}  d4 {[%clk 0:00:20]} 31. cxd4 {[%clk 0:00:54]}  Rxc2+ {[%clk 0:00:21]} 32. Kh3 {[%clk 0:00:54]}  Nb6 {[%clk 0:00:21]} 33. Rab1 {[%clk 0:00:49]}  Nd7 {[%clk 0:00:16]} 34. Qe4 {[%clk 0:00:46]}  Qxe4 {[%clk 0:00:12]} 35. fxe4 {[%clk 0:00:47]}  Rac8 {[%clk 0:00:07]} 36. Rb7 {[%clk 0:00:45]}  Nf8 {[%clk 0:00:08]} 37. Rf1 {[%clk 0:00:44]}  g5 {[%clk 0:00:02]} 38. Rfxf7 {[%clk 0:00:42]}  g4+ {[%clk 0:00:01]} 39. Kxg4 {[%clk 0:00:42]} 1-0


[Site "https://www.chess.com"]

[Event "Titled Tuesday Blitz January 31 Early 2023"]
[White "Orlov, Georgi"]
[Black "Mikaelyan, Arman"]
[WhiteFideId "2011271"]
[BlackFideId "13304852"]
[WhiteElo "2453"]
[BlackElo "2523"]
[Result "1-0"]
[Round "08"]
[TimeControl "180+2"]
[Date "2023.01.31"]
[WhiteClock "0:00:38"]
[BlackClock "0:00:06"]

1. d4 {[%clk 0:02:57]}  Nf6 {[%clk 0:02:55]} 2. Nf3 {[%clk 0:02:57]}  d5 {[%clk 0:02:51]} 3. c4 {[%clk 0:02:57]}  c6 {[%clk 0:02:51]} 4. Nc3 {[%clk 0:02:56]}  dxc4 {[%clk 0:02:51]} 5. a4 {[%clk 0:02:56]}  Bf5 {[%clk 0:02:51]} 6. e3 {[%clk 0:02:56]}  e6 {[%clk 0:02:51]} 7. Bxc4 {[%clk 0:02:57]}  Bb4 {[%clk 0:02:52]} 8. O-O {[%clk 0:02:57]}  O-O {[%clk 0:02:52]} 9. Qe2 {[%clk 0:02:57]}  Bg6 {[%clk 0:02:52]} 10. Ne5 {[%clk 0:02:54]}  Nbd7 {[%clk 0:02:52]} 11. Nxg6 {[%clk 0:02:54]}  hxg6 {[%clk 0:02:53]} 12. Rd1 {[%clk 0:02:52]}  Qa5 {[%clk 0:02:42]} 13. Bd2 {[%clk 0:02:39]}  Nb6 {[%clk 0:02:33]} 14. Bb3 {[%clk 0:02:38]}  c5 {[%clk 0:02:32]} 15. dxc5 {[%clk 0:02:25]}  Qxc5 {[%clk 0:02:33]} 16. Rac1 {[%clk 0:02:24]}  Qa5 {[%clk 0:02:22]} 17. Nb5 {[%clk 0:02:21]}  Bxd2 {[%clk 0:02:17]} 18. Qxd2 {[%clk 0:02:20]}  Qxd2 {[%clk 0:02:14]} 19. Rxd2 {[%clk 0:02:20]}  a6 {[%clk 0:02:13]} 20. Nd6 {[%clk 0:02:07]}  Rfd8 {[%clk 0:02:13]} 21. e4 {[%clk 0:02:00]}  Rd7 {[%clk 0:01:56]} 22. e5 {[%clk 0:01:42]}  Ng4 {[%clk 0:01:49]} 23. f4 {[%clk 0:01:30]}  Rad8 {[%clk 0:01:42]} 24. a5 {[%clk 0:01:14]}  Nc8 {[%clk 0:01:37]} 25. Ba4 {[%clk 0:01:14]}  Nxd6 {[%clk 0:00:52]} 26. Bxd7 {[%clk 0:01:10]}  Ne4 {[%clk 0:00:52]} 27. Rd4 {[%clk 0:01:07]}  Kh7 {[%clk 0:00:31]} 28. Rc8 {[%clk 0:01:02]}  Rxc8 {[%clk 0:00:31]} 29. Bxc8 {[%clk 0:01:02]}  Nc5 {[%clk 0:00:31]} 30. b4 {[%clk 0:01:01]}  Nb3 {[%clk 0:00:22]} 31. Rd7 {[%clk 0:00:57]}  Ne3 {[%clk 0:00:18]} 32. Bxb7 {[%clk 0:00:54]}  g5 {[%clk 0:00:12]} 33. Rxf7 {[%clk 0:00:43]}  Kg6 {[%clk 0:00:11]} 34. Rf8 {[%clk 0:00:42]}  Nd4 {[%clk 0:00:08]} 35. Bxa6 {[%clk 0:00:39]}  g4 {[%clk 0:00:06]} 36. Bd3+ {[%clk 0:00:38]} 1-0


[Site "https://www.chess.com"]

[Event "Titled Tuesday Blitz January 31 Early 2023"]
[White "Costachi, Mihnea"]
[Black "Predke, Alexandr"]
[WhiteFideId "1217518"]
[BlackFideId "24107581"]
[WhiteElo "2476"]
[BlackElo "2685"]
[Result "0-1"]
[Round "08"]
[TimeControl "180+2"]
[Date "2023.01.31"]
[WhiteClock "0:00:15"]
[BlackClock "0:00:07"]

1. Nc3 {[%clk 0:03:00]}  a6 {[%clk 0:02:54]} 2. e4 {[%clk 0:02:58]}  c5 {[%clk 0:02:53]} 3. f4 {[%clk 0:02:55]}  b5 {[%clk 0:02:52]} 4. Nf3 {[%clk 0:02:55]}  Bb7 {[%clk 0:02:51]} 5. d3 {[%clk 0:02:55]}  b4 {[%clk 0:02:51]} 6. Ne2 {[%clk 0:02:54]}  d5 {[%clk 0:02:51]} 7. e5 {[%clk 0:02:54]}  e6 {[%clk 0:02:51]} 8. g3 {[%clk 0:02:54]}  Nh6 {[%clk 0:02:51]} 9. Bg2 {[%clk 0:02:54]}  Be7 {[%clk 0:02:50]} 10. d4 {[%clk 0:02:51]}  Nd7 {[%clk 0:02:43]} 11. O-O {[%clk 0:02:51]}  Nf5 {[%clk 0:02:43]} 12. c3 {[%clk 0:02:51]}  a5 {[%clk 0:02:41]} 13. g4 {[%clk 0:02:50]}  Nh4 {[%clk 0:02:41]} 14. Nxh4 {[%clk 0:02:50]}  Bxh4 {[%clk 0:02:42]} 15. f5 {[%clk 0:02:51]}  Ba6 {[%clk 0:02:26]} 16. Be3 {[%clk 0:02:22]}  Bg5 {[%clk 0:02:16]} 17. Qd2 {[%clk 0:02:19]}  h6 {[%clk 0:02:11]} 18. fxe6 {[%clk 0:02:03]}  fxe6 {[%clk 0:02:11]} 19. Nf4 {[%clk 0:01:51]}  Bxf4 {[%clk 0:02:00]} 20. Rxf4 {[%clk 0:01:49]}  cxd4 {[%clk 0:02:00]} 21. cxd4 {[%clk 0:01:44]}  Qe7 {[%clk 0:01:54]} 22. Bf1 {[%clk 0:01:40]}  Rf8 {[%clk 0:01:44]} 23. Bxa6 {[%clk 0:01:33]}  Rxf4 {[%clk 0:01:39]} 24. Bxf4 {[%clk 0:01:34]}  Rxa6 {[%clk 0:01:39]} 25. Qc2 {[%clk 0:01:34]}  Ra8 {[%clk 0:00:53]} 26. Qc6 {[%clk 0:01:22]}  Rb8 {[%clk 0:00:52]} 27. Rf1 {[%clk 0:01:20]}  Kd8 {[%clk 0:00:50]} 28. Rc1 {[%clk 0:01:21]}  Qf7 {[%clk 0:00:20]} 29. Qc7+ {[%clk 0:01:03]}  Ke8 {[%clk 0:00:20]} 30. Bg3 {[%clk 0:00:55]}  Qg6 {[%clk 0:00:20]} 31. h3 {[%clk 0:00:40]}  h5 {[%clk 0:00:20]} 32. Rf1 {[%clk 0:00:29]}  hxg4 {[%clk 0:00:19]} 33. h4 {[%clk 0:00:29]}  Qd3 {[%clk 0:00:17]} 34. Kh2 {[%clk 0:00:24]}  Qxf1 {[%clk 0:00:16]} 35. Qd6 {[%clk 0:00:20]}  Qf5 {[%clk 0:00:13]} 36. Qc6 {[%clk 0:00:17]}  Qf7 {[%clk 0:00:08]} 37. Qd6 {[%clk 0:00:17]}  Rc8 {[%clk 0:00:07]} 38. Qc6 {[%clk 0:00:15]}  Rxc6 {[%clk 0:00:07]} 0-1


[Site "https://www.chess.com"]